Cogmind - Beta 16 @@@ ROGUE MODE // 2025.12.07 @ 01:57:44 Player: PopcornMaze Result: Destroyed by S-27 Virus with Autogun Performance ------------- Evolutions (3) 1500 Regions Visited (8) 1600 Robots Destroyed (136) 680 Value Destroyed (4994) 4994 Prototype IDs (29) 580 Alien Tech Used (0) 0 Bonus (1143) 1143 TOTAL SCORE: 10497 Bonus ------- High Alert Combat Kills 643 Entered Garrisons 200 Aligned with FarCom 300 Cogmind --------- Core Integrity 0/700 Matter 274/300 Energy 31/100 System Corruption 5% Temperature Cool (20) Movement Core (50) Location -7/Factory Parts ------- > --- POWER (2) -------- (None) > --- PROPULSION (2) --- Faulty Cooled VTOL Module Faulty Cooled VTOL Module > --- UTILITY (7) ------ (None) > --- WEAPON (2) ------- (None) > --- INVENTORY (5) ---- Improved Cooling System Utility Shielding Heavy Laser Heavy Laser Makeshift Hammer Peak State ------------ > --- POWER ------------ Light Ion Engine Light Nuclear Core > --- PROPULSION ------- Improved Titanium Leg Improved Titanium Leg > --- UTILITY ---------- Cryofiber Web Improved Heat Sink High-capacity Storage Unit Power Shielding Utility Shielding Hardened Medium Armor Plating Hardened Medium Armor Plating > --- WEAPON ----------- Firepult > --- INVENTORY -------- Cryofiber Web Improved Cooling System Improved Cooling System Utility Shielding Utility Shielding Hardened Light Armor Plating System Shield Relay Coupler [Swarmer] Relay Coupler [Grunt] Relay Coupler [Grunt] Relay Coupler [Brawler] Relay Coupler [Demolisher] Improved EM Shotgun Improved EM Shotgun Improved EM Shotgun Medium Laser Advanced Beam Rifle Datajack Makeshift Hammer [Rating: 52] Favorites ----------- Power Heavy Ion Engine Engine Heavy Ion Engine Power Core Light Nuclear Core Propulsion Wheel Treads Light Treads Leg Improved Titanium Leg Wheel Wheel Hover Unit Improved Airjet Flight Unit Cooled VTOL Module Utility High-capacity Storage Unit Device Cryofiber Web Storage High-capacity Storage Unit Processor Launcher Guidance Computer Protection Utility Shielding Weapon Firepult Energy Gun Improved EM Shotgun Energy Cannon Firepult Ballistic Gun Light Assault Rifle Launcher Grenade Launcher Impact Weapon Makeshift Hammer Build | -11 -10 -10 -10 -9 -8 -8 -8 -7 ------- Run | Yrd Mat Min Exi Min Mat Gar Mat Fac Slots Evolved 6 | . . . . . 4 . . 2 Power 1 | . . . . . . . . 1 Propulsion . | . . . . . . . . . Utility 5 | . . . . . 4 . . 1 Weapon . | . . . . . . . . . Parts Attached 67 | 8 6 . . . 26 1 8 18 Power 7 | 1 1 . . . 2 . 2 1 Engine 5 | 1 1 . . . 1 . 1 1 Core 2 | . . . . . 1 . 1 . Reactor . | . . . . . . . . . Propulsion 17 | 2 . . . . 6 . 1 8 Treads 5 | 2 . . . . 3 . . . Leg 2 | . . . . . . . . 2 Wheel 7 | . . . . . 3 . 1 3 Hover 1 | . . . . . . . . 1 Flight 2 | . . . . . . . . 2 Utility 22 | 2 3 . . . 10 . 4 3 Device 7 | 1 . . . . 5 . 1 . Storage 4 | 1 3 . . . . . . . Processor 1 | . . . . . . . . 1 Hackware . | . . . . . . . . . Protection 10 | . . . . . 5 . 3 2 Artifact . | . . . . . . . . . Weapon 21 | 3 2 . . . 8 1 1 6 Energy Gun 8 | 1 . . . . 2 . 1 4 Energy Cannon 2 | . . . . . 1 . . 1 Ballistic Gun 6 | 2 1 . . . 3 . . . Ballistic Cannon . | . . . . . . . . . Launcher 4 | . 1 . . . 2 . . 1 Special Weapon . | . . . . . . . . . Impact Weapon 1 | . . . . . . 1 . . Slashing Weapon . | . . . . . . . . . Piercing Weapon . | . . . . . . . . . Special Melee Weapon . | . . . . . . . . . Unidentified Prototypes 6 | . 1 . . . 1 . 1 3 Parts Lost 27 | . . . . . 12 1 5 9 Power 5 | . . . . . 1 1 . 3 Propulsion 6 | . . . . . 4 . 2 . Utility 8 | . . . . . 2 . 3 3 Weapon 8 | . . . . . 5 . . 3 Highest Loss Streak 5 | . . . . . 4 1 4 5 To Critical Strikes . | . . . . . . . . . Average Backups 14 | 4 6 8 10 14 14 17 16 18 Power . | . 1 1 1 1 . 1 1 . Propulsion 2 | 2 2 2 2 3 4 3 1 1 Utility 5 | . . . 1 1 1 7 8 10 Weapon 5 | . 3 5 6 8 7 5 5 4 Tool/Special . | . . . . . . . . . Unused Backups 28 | 2 2 1 . . 4 1 2 16 Power 1 | . 1 . . . . . . . Propulsion 7 | 2 . . . . 2 . 2 1 Utility 11 | . . . . . . . . 11 Weapon 7 | . . 1 . . 2 1 . 3 Tool/Special 2 | . 1 . . . . . . 1 Average Slot Usage (%) 90 | . 99 100 100 100 82 87 86 81 Engine 9 | . 14 14 14 14 8 7 8 6 Core 1 | . . . . . . 1 . 4 Treads 10 | . 28 28 28 28 6 . . . Wheel 9 | . . . . . 10 18 17 10 Device 17 | . 14 14 14 14 15 24 17 13 Storage 10 | . 14 14 14 14 9 9 9 6 Protection 13 | . . . . . 15 18 23 25 Energy Cannon 3 | . . . . . 2 5 9 4 Ballistic Gun 5 | . 14 14 14 14 6 . . . Launcher 5 | . 12 14 14 14 3 . . 1 Peak Build Rating 52 | 7 10 10 12 13 42 42 42 52 Average Rating 26 | 4 9 10 11 12 22 35 39 40 On Entrance 19 | . 7 10 10 12 13 41 41 41 Avg Prop Armor Cover (%) . | . . . . . . . . . Naked Turns 25 | . . . . . . . . 25 Heaviest Build 90 | 14 54 53 53 53 82 82 82 90 Greatest Support 46 | 40 40 40 40 40 46 20 20 40 Greatest Overweight (x) 8 | 2 1 1 1 1 6 4 8 8 Average Overweight (x) 2 | . . 1 1 1 2 3 3 3 Largest Inventory Capacity 20 | 8 20 20 20 20 20 20 20 20 Average Capacity 19 | 7 14 20 20 20 20 20 20 18 Most Carried 20 | 6 8 11 12 17 20 20 20 20 Average Carried 15 | 4 6 8 11 15 15 18 16 18 Final Capacity 20 | 8 20 20 20 20 20 20 20 5 Final Carried 19 | 4 7 10 12 17 15 17 19 5 Class Distribution -------------------- 100% | Mutant Dominant Class ---------------- Mutant | -10/Materials Mutant | -10/Mines Mutant | -10/Exiles Mutant | -9/Mines Mutant | -8/Materials Mutant | -8/Garrison Mutant | -8/Materials Mutant | -7/Factory Resources | -11 -10 -10 -10 -9 -8 -8 -8 -7 ----------- Run | Yrd Mat Min Exi Min Mat Gar Mat Fac Matter Collected 1624 | 159 353 26 . 74 577 130 85 220 Remotely . | . . . . . . . . . Salvage Created 4622 | 109 285 11 . 68 907 1185 1518 539 Parts 199 | 7 22 4 . 11 58 26 57 14 Haulers Intercepted 6 | . . . . . 4 . 2 . Recyclers Shooed 5 | . . . . . 1 . 4 . Parts Field Recycled . | . . . . . . . . . Retrieved Matter . | . . . . . . . . . Parts Self-Destructed . | . . . . . . . . . Prevented . | . . . . . . . . . Parts Restored . | . . . . . . . . . Kills | -11 -10 -10 -10 -9 -8 -8 -8 -7 ------- Run | Yrd Mat Min Exi Min Mat Gar Mat Fac Combat Hostiles Destroyed 93 | . 8 3 . 6 25 25 14 12 Guns 12 | . 2 . . 2 5 . . 3 Cannons 3 | . . . . . . . 2 1 AOE 56 | . 6 3 . 4 17 13 7 6 Classes Destroyed 15 | 2 3 . . 1 5 1 2 1 Worker 8 | . . . . . 4 . 4 . Builder 14 | . 1 . . . 2 . 10 1 Tunneler 3 | 2 . . . 1 . . . . Hauler 6 | . . . . . 4 . 2 . Recycler 9 | 1 2 . . . 1 . 5 . Operator 1 | . . . . . . . 1 . Watcher 2 | . . . . . 1 . 1 . Swarmer 27 | . 2 3 . 4 11 3 . 4 Grunt 38 | . 6 . . 1 7 15 4 5 Brawler 1 | . . . . . . 1 . . Duelist 3 | . . . . 1 . 1 . 1 Sentry 13 | . . . . . 3 5 5 . Specialist 2 | . . . . . . . 2 . Hunter 7 | . . . . . 4 . 3 . Programmer 2 | . . . . . . . . 2 Best Kill Streak 11 | 3 4 3 . 4 9 11 11 4 Combat Bots Only 11 | . 3 3 . 4 6 11 3 4 Max Kills in Single Turn 4 | 1 3 3 . 2 4 3 4 2 Gunslinging . | . . . . . . . . . Exploded 3 | . 1 3 . 2 3 3 2 1 Melee . | . . . . . . . . . Uniques/NPCs Destroyed . | . . . . . . . . . Combat | -11 -10 -10 -10 -9 -8 -8 -8 -7 -------- Run | Yrd Mat Min Exi Min Mat Gar Mat Fac Hostile Shots Fired 485 | . 63 2 . 8 137 21 64 190 Missed 163 | . 24 1 . 4 37 7 22 68 Hits 322 | . 39 1 . 4 100 14 42 122 Projectile 322 | . 39 1 . 4 100 14 42 122 Critical Strikes 11 | . . . . . 1 . 5 5 Actively Blocked 2 | . . . . . . . 2 . Damage Taken 4948 | . 461 6 . 45 1285 373 773 2005 Core 1228 | . 51 . . 7 238 97 123 712 Absorbed by Shields 200 | . . . . . 200 . . . Redirected to Shielding 173 | . . . . . 41 13 60 59 Regen/Repaired (Parts) 25 | . 25 . . . . . . . Core Remaining (%) 64 | 100 . . . 76 . . 16 . Volleys Fired 199 | 5 27 1 . 6 74 27 30 29 Largest 2 | 2 1 2 . 2 2 1 1 2 Hottest 250 | 40 30 50 . 50 250 250 250 250 Shots Fired 278 | 10 27 2 . 12 123 27 30 47 Gun 160 | 10 15 1 . 6 95 . . 33 Cannon 67 | . . . . . 2 27 30 8 Launcher 51 | . 12 1 . 6 26 . . 6 Special . | . . . . . . . . . Kinetic 111 | 10 15 1 . 6 79 . . . Thermal 80 | . . . . . 2 27 30 21 Explosive 45 | . 12 1 . 6 26 . . . Electromagnetic 42 | . . . . . 16 . . 26 Robot Hit Streak 12 | 3 10 4 . 2 8 8 10 12 Robot Miss Streak 6 | 2 1 . . 1 5 6 5 3 Penetration Max . | . . . . . . . . . Secondary Targets . | . . . . . . . . . Shots Hit Robots 151 | 5 14 2 . 2 77 8 19 24 Core Hits 235 | 3 20 4 . 12 73 34 56 33 Critical Kills . | . . . . . . . . . Critical Parts Destroyed 1 | . 1 . . . . . . . Critical Strikes 1 | . 1 . . . . . . . Destroy 1 | . 1 . . . . . . . Melee Attacks 75 | . . . . . . 75 . . Impact 75 | . . . . . . 75 . . Slashing . | . . . . . . . . . Piercing . | . . . . . . . . . Sneak Attacks . | . . . . . . . . . Combat Hostiles . | . . . . . . . . . Follow-up Attacks . | . . . . . . . . . Damage Inflicted 9303 | 61 746 153 . 348 2759 1808 1903 1525 Guns 1321 | 61 156 6 . 33 643 . . 422 Cannons 757 | . . . . . 30 382 319 26 Explosions 7200 | . 590 147 . 315 2086 1426 1584 1052 Melee . | . . . . . . . . . Ramming 25 | . . . . . . . . 25 Kinetic 615 | 61 156 6 . 33 359 . . . Thermal 4819 | . . . . . 380 1808 1903 728 Explosive 2788 | . 590 147 . 315 1736 . . . Electromagnetic 1056 | . . . . . 284 . . 772 Impact . | . . . . . . . . . Slashing . | . . . . . . . . . Piercing . | . . . . . . . . . Highest Corruption 5 | . . . . . . . . 5 Average Corruption 1 | . . . . . . . . 1 Corruption Purged . | . . . . . . . . . Corruption Blocked . | . . . . . . . . . Effects 6 | . . . . . . . . 6 Message Errors 1 | . . . . . . . . 1 Matter Fused 1 | . . . . . . . . 1 Heat Flow Errors 2 | . . . . . . . . 2 Energy Discharges 1 | . . . . . . . . 1 Parts Rejected 1 | . . . . . . . . 1 Overload Shots . | . . . . . . . . . Overflow Damage 125 | . . . . . 116 . 8 1 Projectiles . | . . . . . . . . . Explosions 125 | . . . . . 116 . 8 1 Melee . | . . . . . . . . . Knockbacks . | . . . . . . . . . Impact . | . . . . . . . . . Kinetic . | . . . . . . . . . Secondary . | . . . . . . . . . Self-Inflicted Damage 632 | . 102 . . 15 199 157 51 108 Shots 41 | . 3 . . 1 7 18 5 7 Rammed 5 | . . . . . . . . 5 Targets Rammed 5 | . . . . . . . . 5 Kicked . | . . . . . . . . . Crushed . | . . . . . . . . . Highest Temperature 439 | . 8 12 . 12 198 319 332 439 Average Temperature 102 | . 3 9 . 9 22 129 133 123 Received Heat Transfer 624 | . 114 . . . 231 90 117 72 Effects 8 | . . . . . . 4 4 . Energy Bleed 1 | . . . . . . . 1 . Interference 7 | . . . . . . 4 3 . Siege Activations . | . . . . . . . . . Martial Activations . | . . . . . . . . . Shielding Activations . | . . . . . . . . . Robots Disrupted . | . . . . . . . . . Combat Hostiles . | . . . . . . . . . Robots Corrupted 4 | . . . . . 2 . . 2 Combat Hostiles 4 | . . . . . 2 . . 2 Parts Fried 7 | . . . . . 3 . . 4 Impact Corruptions . | . . . . . . . . . Robots Melted 19 | . . . . . 1 12 6 . Combat Hostiles 18 | . . . . . 1 12 5 . Parts Melted 94 | . . . . . 2 43 41 8 Heat Transferred 24066 | . . . . . 1220 9000 11760 2086 Parts Sabotaged . | . . . . . . . . . Parts Stolen . | . . . . . . . . . Parts Stripped . | . . . . . . . . . Power Chain Reactions 1 | . . . . . . . . 1 Alert | -11 -10 -10 -10 -9 -8 -8 -8 -7 ------- Run | Yrd Mat Min Exi Min Mat Gar Mat Fac Maximum Alert Level 5 | . . . . . 2 5 3 1 Low Security (%) 47 | 100 100 100 . 100 21 2 . 74 Level 1 16 | . . . . . 77 5 . 25 Level 2 6 | . . . . . 1 14 25 . Level 3 15 | . . . . . . 28 74 . Level 4 12 | . . . . . . 44 . . Level 5 1 | . . . . . . 5 . . High Security . | . . . . . . . . . Max Security . | . . . . . . . . . Peak Influence 1616 | 10 86 86 . 119 401 1616 1042 288 Initial 787 | . . 23 . . . 176 787 261 Average 423 | 1 41 10 . 27 249 1008 773 111 Influence Increases 4386 | 15 298 86 . 190 925 1450 765 657 Destroy 0b10 Robot/C 1860 | . 160 60 . 120 500 500 280 240 Destroy 0b10 Robot/NC 215 | 15 15 . . 5 60 . 115 5 Destroy Leader 386 | . 30 10 . 20 130 30 106 60 Allied During Kill 8 | . . 8 . . . . . . Successful Hack 41 | . 8 . . . 17 16 . . Select Force Hacks 30 | . 30 . . . . . . . Disable Machine 210 | . . . . 15 60 15 105 15 Anti-Garrison Action 800 | . . . . . . 800 . . Destroy Structure 476 | . 55 8 . 30 158 74 144 7 Partial Spotted 15 | . . . . . . 15 . . Lose Combat Pursuer 345 | . . . . . . . 15 330 Influence Decreases 4141 | 15 238 146 . 190 653 106 1805 988 Entered New Map 1277 | . . 37 . . . 96 829 315 Time Decay 1704 | 15 238 109 . 190 393 . 326 433 Lost Part 260 | . . . . . 110 10 50 90 Purge Threat 900 | . . . . . 150 . 600 150 Squads Dispatched 15 | . 4 . . . 3 . 2 6 Investigation 5 | . 3 . . . 1 . . 1 Extermination 3 | . . . . . . . . 3 Reinforcement 7 | . 1 . . . 2 . 2 2 Assault . | . . . . . . . . . Garrison . | . . . . . . . . . Intercept . | . . . . . . . . . Searches Triggered . | . . . . . . . . . Construction Impeded 3 | . . . . . 1 . 1 1 Haulers Reinforced . | . . . . . . . . . Active Scanning Responses . | . . . . . . . . . Cargo Convoy Interrupts 1 | . . . . . . . . 1 Stealth | -11 -10 -10 -10 -9 -8 -8 -8 -7 --------- Run | Yrd Mat Min Exi Min Mat Gar Mat Fac Distress Signals 11 | . . . . . 7 . 2 2 Communications Jammed . | . . . . . . . . . Distress Signals . | . . . . . . . . . Times Spotted 154 | . 18 3 . 5 37 26 21 44 Peak Tracking Total 13 | . 5 3 . 3 6 3 5 13 Tactical Retreats 10 | . . . . . 1 . 1 8 ECM-based Alert Blocks 1 | . . . . . 1 . . . Traps | -11 -10 -10 -10 -9 -8 -8 -8 -7 ------- Run | Yrd Mat Min Exi Min Mat Gar Mat Fac Traps Triggered 15 | . 2 . . . . 10 1 2 Indirectly . | . . . . . . . . . Trap Hack Attempts . | . . . . . . . . . Triggered . | . . . . . . . . . Disarmed 6 | . . . . . 6 . . . Reprogrammed . | . . . . . . . . . Reused . | . . . . . . . . . Traps Extracted . | . . . . . . . . . Installed . | . . . . . . . . . Triggered . | . . . . . . . . . Machines | -11 -10 -10 -10 -9 -8 -8 -8 -7 ---------- Run | Yrd Mat Min Exi Min Mat Gar Mat Fac Machines Disabled 21 | . . . . 1 4 8 7 1 Max in Single Turn 3 | . . . . 1 2 3 1 1 Garrison Relay 6 | . . . . . . 6 . . Machines Repaired . | . . . . . . . . . Machines Dismantled . | . . . . . . . . . Machines Sabotaged . | . . . . . . . . . Overloaded Fab Kills . | . . . . . . . . . Hacking | -11 -10 -10 -10 -9 -8 -8 -8 -7 --------- Run | Yrd Mat Min Exi Min Mat Gar Mat Fac Machines Accessed 22 | . 3 . 1 . 4 3 4 7 Terminals 14 | . 1 . . . 3 3 3 4 Fabricators . | . . . . . . . . . Repair Stations 1 | . 1 . . . . . . . Recycling Units 3 | . 1 . . . . . 1 1 Scanalyzers 2 | . . . . . . . . 2 Garrison Access 1 | . . . . . 1 . . . Total Hacks 57 | . 9 . 1 . 8 7 12 20 Successful 26 | . 7 . 1 . 5 1 8 4 Failed 31 | . 2 . . . 3 6 4 16 Catastrophic 9 | . . . . . 1 3 1 4 Database Lockouts . | . . . . . . . . . Manual 20 | . 4 . 1 . 7 2 3 3 Terminals 36 | . 3 . . . 7 7 9 10 Fabricators . | . . . . . . . . . Repair Stations 4 | . 4 . . . . . . . Recycling Units 10 | . 2 . . . . . 3 5 Scanalyzers 5 | . . . . . . . . 5 Garrison Access 1 | . . . . . 1 . . . Terminal Hacks 12 | . 2 . 1 . 3 1 4 1 Robot Schematic 2 | . 2 . . . . . . . Garrison Index 1 | . . . . . 1 . . . Unreport Threat 6 | . . . . . 1 . 4 1 Disarm Traps 1 | . . . . . 1 . . . Security Stations 1 | . . . . . . 1 . . Proto ID Catalog 1 | . . . 1 . . . . . Fabricator Hacks . | . . . . . . . . . Repair Station Hacks 2 | . 2 . . . . . . . Scan Component 1 | . 1 . . . . . . . Repair 1 | . 1 . . . . . . . Recycling Unit Hacks 4 | . 1 . . . . . 2 1 Report Inventory 3 | . 1 . . . . . 1 1 Retrieve Components 1 | . . . . . . . 1 . Scanalyzer 2 | . . . . . . . . 2 Insert Component 1 | . . . . . . . . 1 Retrieve Study 1 | . . . . . . . . 1 Garrison Access Hacks 1 | . . . . . 1 . . . Unlock Access 1 | . . . . . 1 . . . Unauthorized Hacks 5 | . 2 . . . 1 . 2 . Terminals 4 | . 1 . . . 1 . 2 . Botnet 4 | . 1 . . . 1 . 2 . Fabricators . | . . . . . . . . . Repair Stations . | . . . . . . . . . Recycling Units 1 | . 1 . . . . . . . Tunnel 1 | . 1 . . . . . . . Scanalyzers . | . . . . . . . . . Garrison Access . | . . . . . . . . . Data Cores Recovered . | . . . . . . . . . Used . | . . . . . . . . . Hacking Detections 18 | . 2 . . . 2 3 4 7 Full Trace Events 4 | . . . . . 1 2 . 1 Feedback Events . | . . . . . . . . . Feedback Blocked . | . . . . . . . . . Robot Schematics Acquired 2 | . 2 . . . . . . . Robots Built . | . . . . . . . . . Authchips . | . . . . . . . . . Time . | . . . . . . . . . Total Robot Build Rating . | . . . . . . . . . Part Schematics Acquired . | . . . . . . . . . Parts Built . | . . . . . . . . . Authchips . | . . . . . . . . . Time . | . . . . . . . . . Total Part Build Rating . | . . . . . . . . . Part Studies Acquired 1 | . . . . . . . . 1 Parts Repaired 1 | . 1 . . . . . . . Time 26 | . 26 . . . . . . . Parts Recycled . | . . . . . . . . . Recycled Matter . | . . . . . . . . . Retrieved Matter . | . . . . . . . . . Retrieved Components 10 | . . . . . . . 10 . Parts Scanalyzed . | . . . . . . . . . Part Schematics Acquired . | . . . . . . . . . Parts Damaged . | . . . . . . . . . Bothacking | -11 -10 -10 -10 -9 -8 -8 -8 -7 ------------ Run | Yrd Mat Min Exi Min Mat Gar Mat Fac Used RIF Installer . | . . . . . . . . . Robots Hacked . | . . . . . . . . . Non-combat . | . . . . . . . . . Combat . | . . . . . . . . . Robot Hacks Applied . | . . . . . . . . . Relay Couplers Released 28 | . . . . . . 28 . . Machine Destruction 28 | . . . . . . 28 . . Fabnet Peak Effective % . | . . . . . . . . . Robots Rewired . | . . . . . . . . . Allies Hacked . | . . . . . . . . . Hacks Repelled . | . . . . . . . . . Allies | -11 -10 -10 -10 -9 -8 -8 -8 -7 -------- Run | Yrd Mat Min Exi Min Mat Gar Mat Fac Total Allies 2 | . . 2 . . . . . . Largest Group 2 | . . 2 2 . . . . . Highest-Rated Group 43 | . . 43 43 . . . . . Highest-Rated Ally 31 | . . 31 31 . . . . . Initial Warlord ECA Mod 8 | . . . . . . . 8 7 Total Orders . | . . . . . . . . . Ally Attacks . | . . . . . . . . . Total Damage . | . . . . . . . . . Kills . | . . . . . . . . . Allies Corrupted . | . . . . . . . . . Allies Melted . | . . . . . . . . . Intel | -11 -10 -10 -10 -9 -8 -8 -8 -7 ------- Run | Yrd Mat Min Exi Min Mat Gar Mat Fac Active Infowar (turns) 3682 | 16 629 981 625 738 693 . . . Seismic 3077 | 16 629 981 625 738 88 . . . ECM 605 | . . . . . 605 . . . Robot Analysis Total . | . . . . . . . . . Derelict Logs Recovered . | . . . . . . . . . Drone Launches . | . . . . . . . . . Drone Recoveries . | . . . . . . . . . Exploration | -11 -10 -10 -10 -9 -8 -8 -8 -7 ------------- Run | Yrd Mat Min Exi Min Mat Gar Mat Fac Turns Passed 8760 | 95 629 981 625 738 1051 2370 725 1546 Spaces Moved 4666 | 43 283 280 219 269 526 1549 454 1043 Core 56 | 12 . . . . . . . 44 Treads 1179 | 31 283 280 219 269 97 . . . Legs 1 | . . . . . . . . 1 Wheels 3280 | . . . . . 429 1549 454 848 Hover 150 | . . . . . . . . 150 Flight . | . . . . . . . . . Fastest Speed 50 | 50 160 240 240 240 110 110 125 50 Average Speed 153 | 147 169 240 240 240 149 131 135 128 Slowest Speed 320 | 160 240 240 240 240 320 140 200 270 Overloaded Moves . | . . . . . . . . . Propulsion Burnouts . | . . . . . . . . . Robots Hopped . | . . . . . . . . . Potential Cave-ins . | . . . . . . . . . Cave-ins Triggered . | . . . . . . . . . Exploration Rate (%) 45 | 5 42 51 60 64 42 80 43 19 Regions Visited 8 Branch Regions 3 Pre-discovered Areas 1 | . 1 . . . . . . . Known Exits Taken 1 | . . . . . 1 . . . Unknown Exits Taken 6 | 1 1 1 1 1 . . 1 . Scrap Searched 4 | . . 1 . 3 . . . . Spaces Dug 37 | . . . . . . 29 8 . Terrain Destroyed 480 | . 78 8 . 36 166 29 160 3 Melee 29 | . . . . . . 29 . . Projectile 12 | . . . . . . . 11 1 AOE 439 | . 78 8 . 36 166 . 149 2 Terrain Rammed . | . . . . . . . . . Walls Destroyed . | . . . . . . . . . Machines Disabled . | . . . . . . . . . Actions | -11 -10 -10 -10 -9 -8 -8 -8 -7 --------- Run | Yrd Mat Min Exi Min Mat Gar Mat Fac Total 5927 | 63 406 589 319 352 680 1789 534 1195 Wait 708 | . 78 304 100 73 28 31 28 66 Move 4656 | 42 282 279 218 268 525 1546 453 1043 Hop . | . . . . . . . . . Pick Up 59 | 6 5 4 1 5 11 6 6 15 Fast Attach 30 | 7 2 . . . 11 . 2 8 Attach 36 | . . . . . 11 12 6 7 Detach 18 | . . . . . 4 10 4 . Swap 24 | 1 5 . . . 7 . 2 9 Drop 37 | 2 7 1 . . 9 2 3 13 Fire 199 | 5 27 1 . 6 74 27 30 29 Melee 75 | . . . . . . 75 . . Ram 5 | . . . . . . . . 5 Kick . | . . . . . . . . . Crush . | . . . . . . . . . Escape Stasis 80 | . . . . . . 80 . . Rewire . | . . . . . . . . . Trap . | . . . . . . . . . Miscellaneous . | . . . . . . . . . Route ------- -11/Scrapyard -10/Materials (discovered 3 exits: [*Mat] / [*Min x2]) -10/Mines (discovered 4 exits: [*Mat x2] / *Exi / [*Sub]) -10/Exiles (discovered 2 exits: [*Min x2]) -9/Mines -8/Materials (discovered 2 exits: *Fac / Gar) -8/Garrison (discovered 3 exits: *Mat x3) -8/Materials -7/Factory History --------- Turn | Location | Event 47 | -11/Scrapyard | Discovered new exit (range 15) 96 | -11/Scrapyard | Entered Materials 255 | -10/Materials | Discovered new exit (range 5) 318 | -10/Materials | Build established: Mutant 393 | -10/Materials | Discovered new exit (range 10) 518 | -10/Materials | Repaired Grenade Launcher 658 | -10/Materials | Discovered new exit (range 7) 725 | -10/Materials | Entered Mines 726 | -10/Mines | Assembled infested the area 731 | -10/Mines | Assisted by a Guerilla fighting off Assembled 1185 | -10/Mines | Discovered new exit (range 5) 1346 | -10/Mines | Discovered new exit (range 11) 1456 | -10/Mines | Discovered new exit (range 11) 1531 | -10/Mines | A weapon hastily lodged in a ceiling crevice suddenly fell to the ground 1694 | -10/Mines | Deemed a non-threat by the Exiles lab entrance 1694 | -10/Mines | Discovered new exit (range 5) 1706 | -10/Mines | Entered Exiles 1706 | -10/Exiles | Accompanied by 2 allies 1736 | -10/Exiles | Led the pair of lost Derelicts to a safe place 1738 | -10/Exiles | Discovered new exit (range 15) 1766 | -10/Exiles | Met 8R-AWN 1805 | -10/Exiles | Met EX-HEX 1874 | -10/Exiles | Met EX-BIN 1903 | -10/Exiles | Aligned with FarCom system 1906 | -10/Exiles | Given EX-Vault access code 1967 | -10/Exiles | Opened EX-Vault 1986 | -10/Exiles | Found Firepult 2035 | -10/Exiles | Warned to stay clear of 0b10 Research branches 2116 | -10/Exiles | Met EX-DEC 2203 | -10/Exiles | Discovered new exit (range 12) 2331 | -10/Exiles | Left Exiles lab with Firepult 2331 | -10/Exiles | Entered Mines 3047 | -9/Mines | Discovered new exit (range 5) 3056 | -9/Mines | Received a Rocket Launcher from a helpful Derelict 3069 | -9/Mines | Entered Materials 3069 | -8/Materials | Evolved 4 slots: Utility x4 3201 | -8/Materials | Lost 4 parts (1n1u2w) 4067 | -8/Materials | Discovered new exit (range 11) 4119 | -8/Materials | Identified exit to Garrison 4120 | -8/Materials | Entered Garrison 4154 | -8/Garrison | Triggered checkpoint 4171 | -8/Garrison | Garrison Relay disabled 4265 | -8/Garrison | Triggered checkpoint 4293 | -8/Garrison | Triggered checkpoint 4335 | -8/Garrison | Core integrity fell below 50% 4359 | -8/Garrison | Destroyed 11 combat bots 4404 | -8/Garrison | Discovered new exit (range 10) 4458 | -8/Garrison | Triggered checkpoint 4576 | -8/Garrison | Triggered checkpoint 4633 | -8/Garrison | Discovered new exit (range 12) 4708 | -8/Garrison | Triggered checkpoint 4758 | -8/Garrison | Garrison Relay disabled 5044 | -8/Garrison | Discovered new exit (range 10) 5102 | -8/Garrison | Garrison Relay disabled 5102 | -8/Garrison | Garrison Relay disabled 5142 | -8/Garrison | Triggered checkpoint 5196 | -8/Garrison | Learned Materials security intel 5206 | -8/Garrison | Garrison Relay disabled 6338 | -8/Garrison | Attempted to access garrison exit controls, blocked by remote lockdown 6490 | -8/Garrison | Entered Materials 6916 | -8/Materials | Lost 4 parts (1n3u) 7159 | -8/Materials | Core integrity fell below 20% 7170 | -8/Materials | Discovered new exit (range 11) 7215 | -8/Materials | Entered Factory 7215 | -7/Factory | Evolved 2 slots: Power x1, Utility x1 8601 | -7/Factory | Cargo convoy interrupted 8653 | -7/Factory | Released all parts (7) 8656 | -7/Factory | Core integrity fell below 50% 8671 | -7/Factory | Core integrity fell below 20% 8682 | -7/Factory | Lost 5 parts (2p1u2w) 8761 | -7/Factory | Destroyed by S-27 Virus with Autogun Last Messages --------------- 08653_ Released Arm. Huge Wheel. 08654_ Slammed into P-60 Hacker. 08665_ Slammed into U-05 Engineer. 08678_ Acquired Prototype Hover Unit. 08678_ Identified Imp. Airjet. 08684_ Connecting with Terminal... >>Alert(Purge) Purged threat record, alert level lowered. 08684_ ALERT: Suspicious activity at Terminal F009. Dispatching Investigation squad. 08716_ System corrupted: Heat flow error (+112). 08748_ Slammed into S-27 Virus. 08753_ System corrupted: Heat flow error (+288). 08757_ Acquired Prototype Flight Unit. 08757_ Identified Cld. VTOL Module. 08757_ Imp. Airjet broken. 08757_ Faulty integration triggers power surge. 08759_ Acquired Faulty Cld. VTOL Module. 08759_ Faulty integration triggers energy drain (-37). Map ----- +----------------------------------------------------+ | """ ## #??????? ?????????????????? | | ## #?????? ""?????????????????? | | """ ## #?????? """"" ""?????????????? | | """ ## #????? """"" ""?????????????? | | """ ########+########### ??????????????? | | !#??# """????????????????? | | """ #??# """"?????????????????? | | """ #??# """"?????????????????? | | """ #??# ?????????????? | | #??# ??????????? | | ##+####?### ##########+###########???????????? | | #???# #????????????????????????????????? | | ##### #????????????????????????????????? | | #????????????????????????????????? | | " #????????????????????????????????? | | #????????????????????????????????? | | # T## #####????????????????????????????? | | ##### # ###??????????????????????????? | | ########### # +??????????????????????????? | | # # #????????????????????????????? | | / #?????????????????????????????? | | # #?????????????????????????????? | | # p #?????????????????????????????? | | # ###########???????????????????? | | # p# #???????????????????? | | # # =@ #???????????????????? | | # pss ! #???????????????????? | | # # t #???????????????????? | | # #########+#???????????????????? | | # #?????????????????????????????? | | ########### #?????????????????????????????? | | ??????????###+####+#?????????????????????????????? | | ?????????????????????????????????????????????????? | | ?????????????????????????????????????????????????? | | ?????????????????????????????????????????????????? | | ?????????????????????????????????????????????????? | | ?????????????????????????????????????????????????? | | ?????????????????????????????????????????????????? | | ?????????????????????????????????????????????????? | | ?????????????????????????????????????????????????? | | ?????????????????????????????????????????????????? | | ?????????????????????????????????????????????????? | | ?????????????????????????????????????????????????? | | ?????????????????????????????????????????????????? | | ?????????????????????????????????????????????????? | | ?????????????????????????????????????????????????? | | ?????????????????????????????????????????????????? | | ?????????????????????????????????????????????????? | | ?????????????????????????????????????????????????? | | ?????????????????????????????????????????????????? | +----------------------------------------------------+ Best States ------------- Heat Dissipation 62 Coolant Potential 50 Energy Generation 19 Energy Capacity 280 Matter Stores 300 Matter Capacity 300 Sight Range 16 Terrain Scan Density 10 ECM Strength 1 Base Temperature (-) 100 Armor Coverage 450 Power Shielding 33 Utility Shielding 33 Weapon Shielding 33 Evasion (%) 55 Launcher Accuracy 20 Recoil Reduction 2 Item Schematics ----------------- None Robot Schematics ------------------ M-13 Machinist | -10/Materials | Hacked G-34 Mercenary | -10/Materials | Hacked Fabricated ------------ Nothing Repaired ---------- Grenade Launcher | 58% | -10/Materials Studied --------- Datajack | -7/Factory | Hacked Alien Tech Used ----------------- None Achievements -------------- Item+ Part-time Excavator Challenges ------------ None Game ------ Seed MasterCouplerProcessor Manual? 0 Play Time 01:21:59 Cumulative 6.6 hours Start 2025.12.07 @ 00:37:59 End 2025.12.07 @ 01:57:44 Sessions 1 Manual Loads 0 Difficulty Rogue Special Mode None Game No. 6 Rogue 6 Adventurer 0 Explorer 0 Win Type - Total 0 Types 0/0/0/0/0/0/0/0/0/0 Lore% 1 Gallery% 11 Achievement% 13 Wizard Run 0 Options --------- Layout 1 ASCII 0 Keyboard 0 Movement Numpad Keybinds 0 Fullscreen 1 Font 32/SmallcapsGlow Map View 50x35 Zoom Use 0% Tactical HUD 1 Map Filters NONE Filters NONE Steam 1 RUN: ed292c70-b305-4165-8f08-f508f24f3948